Cogmind - Beta 11.1 @@@ ROGUE MODE // 2022.11.14 @ 14:30:44 Player: darki Result: Destroyed by P-60 Hacker with Shock Rifle Performance ------------- Evolutions (0) 0 Regions Visited (3) 600 Robots Destroyed (9) 45 Value Destroyed (389) 389 Prototype IDs (23) 460 Alien Tech Used (0) 0 Bonus (628) 628 TOTAL SCORE: 2122 Bonus ------- Follower Combat Kills 328 Aligned with FarCom 300 Cogmind --------- Core Integrity 0/250 Matter 295/300 Energy 100/100 System Corruption 4% Temperature Cool (0) Movement Treading (160) Location -10/Exiles Parts ------- > --- POWER (1) -------- (None) > --- PROPULSION (2) --- Light Treads Light Treads > --- UTILITY (2) ------ Medium Storage Unit Supersonic Drone Bay (1/1) > --- WEAPON (2) ------- (None) > --- INVENTORY (10) --- Reinforced Deuterium Engine Light Fission Core Light Treads Carbon-fiber Leg Small Storage Unit Medium Laser Small Laser Peak State ------------ > --- POWER ------------ Light Nuclear Core > --- PROPULSION ------- Aluminum Leg Carbon-fiber Leg > --- UTILITY ---------- Medium Storage Unit Supersonic Drone Bay > --- WEAPON ----------- Small Laser Guided Plasma Cannon > --- INVENTORY -------- Ion Engine Reinforced Deuterium Engine Light Fission Core Light Treads Light Treads Small Storage Unit Medium Laser Grenade Launcher Deploy-a-Sentry Deploy-a-Sentry [Rating: 27] Favorites ----------- Power Light Nuclear Core Engine Ion Engine Power Core Light Nuclear Core Propulsion Aluminum Leg Treads Light Treads Leg Aluminum Leg Utility Small Storage Unit Device Improved Heat Sink Storage Small Storage Unit Weapon Small Laser Energy Gun Small Laser Energy Cannon Guided Plasma Cannon Ballistic Gun Light Assault Rifle Launcher Grenade Launcher Build | -11 -10 -10 -10 ------- Run | Scr Mat Min Exi Slots Evolved . | . . . . Power . | . . . . Propulsion . | . . . . Utility . | . . . . Weapon . | . . . . Parts Attached 18 | . . 6 12 Power 3 | . . 1 2 Engine 1 | . . . 1 Core 2 | . . 1 1 Reactor . | . . . . Propulsion 5 | . . 1 4 Treads 3 | . . . 3 Leg 2 | . . 1 1 Wheel . | . . . . Hover . | . . . . Flight . | . . . . Utility 4 | . . 2 2 Device 2 | . . 1 1 Storage 2 | . . 1 1 Processor . | . . . . Hackware . | . . . . Protection . | . . . . Artifact . | . . . . Weapon 6 | . . 2 4 Energy Gun 4 | . . 2 2 Energy Cannon 1 | . . . 1 Ballistic Gun . | . . . . Ballistic Cannon . | . . . . Launcher 1 | . . . 1 Special Weapon . | . . . . Impact Weapon . | . . . . Slashing Weapon . | . . . . Piercing Weapon . | . . . . Special Melee Weapon . | . . . . Unidentified Prototypes . | . . . . Parts Lost 8 | . . . 8 Power 2 | . . . 2 Propulsion 1 | . . . 1 Utility 1 | . . . 1 Weapon 4 | . . . 4 Highest Loss Streak 7 | . . . 7 To Critical Strikes 1 | . . . 1 Average Slot Usage (%) 94 | . 85 93 97 Engine 6 | . 14 11 1 Core 8 | . . 3 12 Treads 1 | . . . 2 Leg 26 | . 28 28 25 Device 8 | . . 3 12 Storage 15 | . 14 19 14 Energy Gun 20 | . 14 17 23 Energy Cannon 1 | . . . 3 Ballistic Gun 5 | . 14 10 . Naked Turns . | . . . . Heaviest Build 29 | 12 12 16 29 Greatest Support 40 | 20 20 20 40 Greatest Overweight (x) 1 | . . . 1 Average Overweight (x) . | . . . . Largest Inventory Capacity 10 | . 8 8 10 Average Capacity 8 | . 8 8 8 Most Carried 10 | . 6 8 10 Average Carried 7 | . 6 6 7 Final Capacity 10 | 8 8 8 10 Final Carried 8 | 6 6 8 7 Class Distribution -------------------- 51% | Scavenger-Mutant 48% | Mutant Dominant Class ---------------- Mutant | -10/Materials Mutant | -10/Mines Scavenger-Mutant | -10/Exiles Resources | -11 -10 -10 -10 ----------- Run | Scr Mat Min Exi Matter Collected 355 | 200 . 65 90 Remotely . | . . . . Salvage Created 363 | . . 88 275 Parts 22 | . . 7 15 Haulers Intercepted . | . . . . Recyclers Shooed . | . . . . Parts Field Recycled . | . . . . Retrieved Matter . | . . . . Parts Self-Destructed . | . . . . Prevented . | . . . . Kills | -11 -10 -10 -10 ------- Run | Scr Mat Min Exi Combat Hostiles Destroyed 9 | . . 2 7 Guns 2 | . . 2 . Cannons 5 | . . . 5 AOE 2 | . . . 2 Classes Destroyed 4 | . . 1 3 Grunt 5 | . . 2 3 Brawler 1 | . . . 1 Hunter 2 | . . . 2 Programmer 1 | . . . 1 Best Kill Streak 7 | . . 2 7 Combat Bots Only 7 | . . 2 7 Max Kills in Single Turn 2 | . . 1 2 Gunslinging . | . . . . Exploded 2 | . . . 2 Melee . | . . . . Uniques/NPCs Destroyed . | . . . . Combat | -11 -10 -10 -10 -------- Run | Scr Mat Min Exi Damage Taken 1655 | . 214 74 1367 Core 252 | . 39 . 213 Absorbed by Shields . | . . . . Core Remaining (%) 100 | 100 . . . Volleys Fired 15 | . . 7 8 Largest 2 | . . 2 1 Hottest 120 | . . 105 120 Shots Fired 22 | . . 14 8 Gun 14 | . . 14 . Cannon 7 | . . . 7 Launcher 1 | . . . 1 Special . | . . . . Kinetic 5 | . . 5 . Thermal 16 | . . 9 7 Explosive 1 | . . . 1 Electromagnetic . | . . . . Robot Hit Streak 12 | . . 5 12 Robot Miss Streak 2 | . . 2 . Penetration Max . | . . . . Secondary Targets . | . . . . Shots Hit Robots 15 | . . 8 7 Core Hits 14 | . . 4 10 Critical Kills . | . . . . Critical Parts Destroyed . | . . . . Critical Strikes . | . . . . Melee Attacks . | . . . . Impact . | . . . . Slashing . | . . . . Piercing . | . . . . Sneak Attacks . | . . . . Combat Hostiles . | . . . . Follow-up Attacks . | . . . . Damage Inflicted 462 | . . 90 372 Guns 90 | . . 90 . Cannons 251 | . . . 251 Explosions 121 | . . . 121 Melee . | . . . . Ramming . | . . . . Kinetic 16 | . . 16 . Thermal 325 | . . 74 251 Explosive 121 | . . . 121 Electromagnetic . | . . . . Impact . | . . . . Slashing . | . . . . Piercing . | . . . . Highest Corruption 4 | . . . 4 Average Corruption 2 | . . . 2 Corruption Purged . | . . . . Corruption Blocked . | . . . . Effects 2 | . . . 2 Message Errors 1 | . . . 1 Data Loss (major) 1 | . . . 1 Overload Shots . | . . . . Overflow Damage 25 | . . . 25 Projectiles 25 | . . . 25 Explosions . | . . . . Melee . | . . . . Knockbacks . | . . . . Impact . | . . . . Kinetic . | . . . . Secondary . | . . . . Self-Inflicted Damage . | . . . . Shots . | . . . . Rammed . | . . . . Targets Rammed . | . . . . Kicked . | . . . . Crushed . | . . . . Highest Temperature 336 | . . 76 336 Average Temperature 136 | . . 33 188 Received Heat Transfer 219 | . 66 45 108 Siege Activations . | . . . . Robots Corrupted . | . . . . Combat Hostiles . | . . . . Parts Fried . | . . . . Impact Corruptions . | . . . . Robots Melted . | . . . . Combat Hostiles . | . . . . Parts Melted . | . . . . Heat Transferred 734 | . . 174 560 Parts Sabotaged . | . . . . Parts Stolen . | . . . . Parts Stripped . | . . . . Power Chain Reactions . | . . . . Missiles Intercepted . | . . . . Alert | -11 -10 -10 -10 ------- Run | Scr Mat Min Exi Peak Influence 100 | . 15 100 . Initial 5 | . . 5 . Average 23 | . 9 30 . Maximum Alert Level . | . . . . Low Security (%) 100 | . 100 100 . Level 1 . | . . . . Level 2 . | . . . . Level 3 . | . . . . Level 4 . | . . . . Level 5 . | . . . . High Security . | . . . . Max Security . | . . . . Squads Dispatched . | . . . . Investigation . | . . . . Extermination . | . . . . Reinforcement . | . . . . Assault . | . . . . Garrison . | . . . . Intercept . | . . . . Searches Triggered . | . . . . Construction Impeded . | . . . . Haulers Reinforced . | . . . . Active Scanning Responses . | . . . . Cargo Convoy Interrupts . | . . . . Stealth | -11 -10 -10 -10 --------- Run | Scr Mat Min Exi Distress Signals . | . . . . Communications Jammed . | . . . . Distress Signals . | . . . . Times Spotted 42 | . 6 4 32 Peak Tracking Total 16 | . 7 2 16 Tactical Retreats . | . . . . Traps | -11 -10 -10 -10 ------- Run | Scr Mat Min Exi Traps Triggered . | . . . . Indirectly . | . . . . Trap Hack Attempts . | . . . . Triggered . | . . . . Disarmed . | . . . . Reprogrammed . | . . . . Reused . | . . . . Traps Extracted . | . . . . Installed . | . . . . Triggered . | . . . . Machines | -11 -10 -10 -10 ---------- Run | Scr Mat Min Exi Machines Disabled 1 | . . . 1 Max in Single Turn . | . . . . Machines Sabotaged . | . . . . Garrisons Compromised . | . . . . Overloaded Fab Kills . | . . . . Hacking | -11 -10 -10 -10 --------- Run | Scr Mat Min Exi Machines Accessed 1 | . . . 1 Terminals . | . . . . Fabricators . | . . . . Repair Stations . | . . . . Recycling Units . | . . . . Scanalyzers . | . . . . Garrison Access . | . . . . Total Hacks 1 | . . . 1 Successful 1 | . . . 1 Failed . | . . . . Catastrophic . | . . . . Database Lockouts . | . . . . Manual 1 | . . . 1 Terminals . | . . . . Fabricators . | . . . . Repair Stations . | . . . . Recycling Units . | . . . . Scanalyzers . | . . . . Garrison Access . | . . . . Terminal Hacks 1 | . . . 1 EX-Prototype ID Bank 1 | . . . 1 Fabricator Hacks . | . . . . Repair Station Hacks . | . . . . Recycling Unit Hacks . | . . . . Scanalyzer . | . . . . Garrison Access Hacks . | . . . . Unauthorized Hacks . | . . . . Terminals . | . . . . Fabricators . | . . . . Repair Stations . | . . . . Recycling Units . | . . . . Scanalyzers . | . . . . Garrison Access . | . . . . Data Cores Recovered . | . . . . Used . | . . . . Hacking Detections . | . . . . Full Trace Events . | . . . . Feedback Events . | . . . . Feedback Blocked . | . . . . Robot Schematics Acquired . | . . . . Robots Built . | . . . . Authchips . | . . . . Time . | . . . . Total Robot Build Rating . | . . . . Part Schematics Acquired . | . . . . Parts Built . | . . . . Authchips . | . . . . Time . | . . . . Total Part Build Rating . | . . . . Parts Repaired . | . . . . Time . | . . . . Parts Recycled . | . . . . Recycled Matter . | . . . . Retrieved Matter . | . . . . Retrieved Components . | . . . . Parts Scanalyzed . | . . . . Part Schematics Acquired . | . . . . Parts Damaged . | . . . . Bothacking | -11 -10 -10 -10 ------------ Run | Scr Mat Min Exi Used RIF Installer . | . . . . Robots Hacked . | . . . . Non-combat . | . . . . Combat . | . . . . Robot Hacks Applied . | . . . . Relay Couplers Released . | . . . . Fabnet Peak Effective % . | . . . . Robots Rewired . | . . . . Allies Hacked . | . . . . Hacks Repelled . | . . . . Allies | -11 -10 -10 -10 -------- Run | Scr Mat Min Exi Total Allies 3 | . . 3 . Largest Group 3 | . . 3 2 Highest-Rated Group 40 | . . 40 32 Highest-Rated Ally 16 | . . 16 16 Total Orders . | . . . . Ally Attacks 52 | . . 30 22 Total Damage 1191 | . . 313 878 Kills 10 | . . 2 8 Allies Corrupted . | . . . . Allies Melted . | . . . . Turrets Deployed 3 | . . . 3 Intel | -11 -10 -10 -10 ------- Run | Scr Mat Min Exi Robot Analysis Total . | . . . . Derelict Logs Recovered . | . . . . Drone Launches . | . . . . Drone Recoveries . | . . . . Exploration | -11 -10 -10 -10 ------------- Run | Scr Mat Min Exi Turns Passed 918 | . 131 279 508 Spaces Moved 676 | 1 107 205 363 Core . | . . . . Treads 21 | . . . 21 Legs 655 | 1 107 205 342 Wheels . | . . . . Hover . | . . . . Flight . | . . . . Fastest Speed 120 | 120 120 120 120 Average Speed 124 | 120 120 120 128 Slowest Speed 190 | 120 120 120 190 Overloaded Moves . | . . . . Propulsion Burnouts . | . . . . Robots Hopped . | . . . . Cave-ins Triggered . | . . . . Exploration Rate (%) 33 | 2 27 45 58 Regions Visited 3 Branch Regions 2 Pre-discovered Areas . | . . . . Known Exits Taken . | . . . . Unknown Exits Taken 3 | 1 1 1 . Scrap Searched 1 | . . 1 . Spaces Dug . | . . . . Terrain Destroyed 3 | . . . 3 Melee . | . . . . Projectile . | . . . . AOE 3 | . . . 3 Terrain Rammed . | . . . . Walls Destroyed . | . . . . Machines Disabled . | . . . . Actions | -11 -10 -10 -10 --------- Run | Scr Mat Min Exi Total 730 | . 109 224 397 Wait 5 | . 3 2 . Move 673 | . 106 204 363 Hop . | . . . . Pick Up 6 | . . 1 5 Fast Attach 8 | . . 4 4 Attach 2 | . . . 2 Detach . | . . . . Swap 8 | . . 2 6 Drop 13 | . . 4 9 Fire 15 | . . 7 8 Melee . | . . . . Ram . | . . . . Kick . | . . . . Crush . | . . . . Escape Stasis . | . . . . Rewire . | . . . . Trap . | . . . . Miscellaneous . | . . . . Route ------- -11/Scrapyard -10/Materials (discovered 2 exits: [*Mat] / [*Min]) -10/Mines (discovered 2 exits: [*Mat] / *Exi) -10/Exiles History --------- Turn | Location | Event 1 | -11/Scrapyard | Discovered new exit (range 0) 1 | -11/Scrapyard | Entered Materials 58 | -10/Materials | Discovered new exit (range 16) 114 | -10/Materials | Discovered new exit (range 16) 132 | -10/Materials | Entered Mines 135 | -10/Mines | Assisted by bots powering up and referring to "LRC-V3" 167 | -10/Mines | Discovered new exit (range 14) 317 | -10/Mines | Build established: Mutant 404 | -10/Mines | Deemed a non-threat by the Exiles lab entrance 404 | -10/Mines | Discovered new exit (range 5) 411 | -10/Mines | Entered Exiles 411 | -10/Exiles | Accompanied by 2 allies 452 | -10/Exiles | Met 8R-AWN 497 | -10/Exiles | Met EX-HEX 532 | -10/Exiles | Met EX-BIN 545 | -10/Exiles | Aligned with FarCom system 546 | -10/Exiles | Given EX-Vault access code 574 | -10/Exiles | Opened EX-Vault 605 | -10/Exiles | Warned to stay clear of 0b10 Research branches 623 | -10/Exiles | Exiles lab attacked by MAIN.C 653 | -10/Exiles | Build established: Scavenger-Mutant 783 | -10/Exiles | DAS Turret deployed 783 | -10/Exiles | Found Deploy-a-Sentry 785 | -10/Exiles | Found Deploy-a-Sentry 788 | -10/Exiles | Found Supersonic Drone Bay 794 | -10/Exiles | Found Gui. Plasma Cannon 862 | -10/Exiles | Core integrity fell below 50% 863 | -10/Exiles | DAS Turret deployed 903 | -10/Exiles | Destroyed 7 combat bots 914 | -10/Exiles | Core integrity fell below 20% 919 | -10/Exiles | DAS Turret deployed 919 | -10/Exiles | Destroyed by P-60 Hacker with Shock Rifle Last Messages --------------- 00877_ System corrupted: Substantial component data lost. 00877_ Penetrated by Slug. 00877_ Grenade Launcher destroyed. 00878_ H-55 Commando destroyed. 00880_ Destroyed Targeting Computer. 00880_ H-55 Commando knocked back. 00881_ Penetrated by Slug. 00882_ H-55 Commando destroyed. 00895_ Acquired 45 matter. 00901_ Gui. Plasma Cannon destroyed. 00905_ Acquired Shock Rifle. 00909_ YBT3EFPEC&DL2S/YW9QQ09 00909_ Acquired Shock Rifle. 00910_ Shock Rifle destroyed. 00910_ Penetrated by Slug. 00913_ Ion Engine destroyed. 00913_ Penetrated by Slug. 00917_ Shock Rifle destroyed. 00917_ Dropped Deploy-a-Sentry. 00919_ DAS Turret deployed. Map ----- +----------------------------------------------------+ | ????????????????????#""X" #??????????????? | | ????????????????????#" * #??????????????? | | ????????????????????#" ## =% #??????????????? | | ????????????????????#""""""?# ! #?#########????? | | ????????????????????##"###??# %#?#"""""""#????? | | ????????????????????????????# #?#"""""""#????? | | ????????????????????????????# #?#"""""""#????? | | ???????????????????????????## ###"" """"#????? | | ##?????????????????????????#" t """"#????? | | "#?????????????????????????#" """#????? | | "#?????????????????????????#" """#????? | | "#?????????????????????????#" """#????? | | "#????????????##???????????# """#????? | | "#???????????? """????????#" """#????? | | "?????????????" """????????## """"????? | | ??????????????" ????????# """#????? | | ?????????????"" ????????## "X" """"????? | | #????????????"" "#????????# = """ #????? | | #???????????? ""?????????# %=* """""""""#????? | | ###???????????" "?????????## [*= ##########????? | | ##??????????# #????????## !%!!% #?????????????? | | ######???### ###?###### [%%%%=##?????????????? | | """#####X# #"###"""" ! = ##?????????????? | | """""" % %%=!% ##???########## | | h " """ [%*%= #####""""""""" | | ghl " @ =%= " """ """ | | ## bg t "" " | | ?### hg g %* % " " | | ???## g % =% % p " | | ????## p ! " | | ?????##" !% | | ??????#"" " """ p | | ??????#" ######""" p ph | | ??????"" ""##????#####""" | | ??????""" % """##?????????##""" | | ??????"" """##???????????#"""" | | ???????" ""#????????????#"" | | ??????" #??????????????""" | | ??????"" ??????????????? | | ??????? ?????????????? | | ????????? ?????????????? | | ?????????? ?????????????? | | ??????????? ?? ??????????????? " | | ???????????????????????????????????? """ | | ??????????????????????????????????????" " ""#" | | ????????????????????????????????????????" "??##""" | | ??????????????????????????????????????????????#### | | ?????????????????????????????????????????????????? | | ?????????????????????????????????????????????????? | | ?????????????????????????????????????????????????? | +----------------------------------------------------+ Best States ------------- Heat Dissipation 39 Energy Generation 14 Energy Capacity 400 Matter Stores 300 Matter Capacity 300 Sight Range 16 Terrain Scan Density 10 Evasion (%) 55 Recoil Reduction 2 Item Schematics ----------------- None Robot Schematics ------------------ None Fabricated ------------ Nothing Alien Tech Used ----------------- None Achievements -------------- None Challenges ------------ None Game ------ Seed SurgeTractorCalibrator Manual? 0 Play Time 00:09:05 Cumulative 123.9 hours Start 2022.11.14 @ 14:25:12 End 2022.11.14 @ 14:30:44 Sessions 1 Manual Loads 0 Difficulty Rogue Special Mode None Game No. 137 Rogue 137 Adventurer 0 Explorer 0 Win Type - Total 0 Types 0/0/0/0/0/0/0/0/0 Lore% 53 Gallery% 68 Achievement% 53 Wizard Run 0 Options --------- ASCII 0 Keyboard 0 Movement Mouse Keybinds 0 Fullscreen 1 Font 18/SmallcapsGlow Map View 76x50 Tactical HUD 1 Map Filters NONE Filters NONE Steam 1 RUN: fb4a2f7b-9df7-4f1b-be3d-d6e49b6526f1